[Event "Titled Tuesday Blitz June 21 Early 2022"]
[White "Perez Leiva, Jerzy Jesus"]
[Black "Barria Zuniga, Daniel"]
[WhiteFideId "3524337"]
[BlackFideId "3400816"]
[WhiteElo "2287"]
[BlackElo "2414"]
[Result "0-1"]
[Round "08"]
[TimeControl "180+1"]
[Date "2022.06.21"]
[WhiteClock "0:00:02"]
[BlackClock "0:00:21"]

1. e4 {[%clk 0:02:35]}  c5 {[%clk 0:02:57]} 2. Nf3 {[%clk 0:02:35]}  e6 {[%clk 0:02:57]} 3. d4 {[%clk 0:02:35]}  cxd4 {[%clk 0:02:57]} 4. Nxd4 {[%clk 0:02:35]}  a6 {[%clk 0:02:58]} 5. c4 {[%clk 0:02:36]}  Nf6 {[%clk 0:02:57]} 6. Nc3 {[%clk 0:02:36]}  Qc7 {[%clk 0:02:56]} 7. Be2 {[%clk 0:02:30]}  Bb4 {[%clk 0:02:54]} 8. Qd3 {[%clk 0:02:30]}  Nc6 {[%clk 0:02:51]} 9. Nxc6 {[%clk 0:02:19]}  bxc6 {[%clk 0:02:46]} 10. Bd2 {[%clk 0:02:11]}  a5 {[%clk 0:02:41]} 11. O-O {[%clk 0:02:02]}  O-O {[%clk 0:02:32]} 12. Rfd1 {[%clk 0:01:20]}  Ba6 {[%clk 0:02:09]} 13. Qe3 {[%clk 0:00:55]}  d6 {[%clk 0:01:55]} 14. Na4 {[%clk 0:00:53]}  c5 {[%clk 0:01:33]} 15. b3 {[%clk 0:00:49]}  Bb7 {[%clk 0:01:29]} 16. Bd3 {[%clk 0:00:44]}  Bc6 {[%clk 0:01:12]} 17. Nc3 {[%clk 0:00:25]}  Bxc3 {[%clk 0:00:56]} 18. Bxc3 {[%clk 0:00:26]}  e5 {[%clk 0:00:57]} 19. f4 {[%clk 0:00:18]}  Nd7 {[%clk 0:00:53]} 20. Qg3 {[%clk 0:00:16]}  f6 {[%clk 0:00:51]} 21. Bc2 {[%clk 0:00:15]}  Rad8 {[%clk 0:00:47]} 22. Qh3 {[%clk 0:00:13]}  Rfe8 {[%clk 0:00:45]} 23. Rf1 {[%clk 0:00:12]}  Nf8 {[%clk 0:00:43]} 24. f5 {[%clk 0:00:10]}  a4 {[%clk 0:00:28]} 25. g4 {[%clk 0:00:09]}  axb3 {[%clk 0:00:28]} 26. axb3 {[%clk 0:00:10]}  Ra8 {[%clk 0:00:28]} 27. Qe3 {[%clk 0:00:09]}  Rxa1 {[%clk 0:00:27]} 28. Rxa1 {[%clk 0:00:09]}  Ra8 {[%clk 0:00:28]} 29. Rxa8 {[%clk 0:00:09]}  Bxa8 {[%clk 0:00:29]} 30. b4 {[%clk 0:00:07]}  cxb4 {[%clk 0:00:27]} 31. Bxb4 {[%clk 0:00:08]}  Nd7 {[%clk 0:00:27]} 32. c5 {[%clk 0:00:07]}  Nxc5 {[%clk 0:00:27]} 33. Bb3+ {[%clk 0:00:06]}  Kf8 {[%clk 0:00:22]} 34. Qc3 {[%clk 0:00:02]}  Qb6 {[%clk 0:00:21]} 0-1


[Site "https://www.chess.com"]

[Event "Titled Tuesday Blitz June 21 Early 2022"]
[White "Petrovic, Aleksa"]
[Black "Zaloznyy, Mike"]
[WhiteFideId "967629"]
[BlackFideId "2023075"]
[WhiteElo "2117"]
[BlackElo "2003"]
[Result "1-0"]
[Round "08"]
[TimeControl "180+1"]
[Date "2022.06.21"]
[WhiteClock "0:00:11"]
[BlackClock "0:00:05"]

1. d4 {[%clk 0:03:00]}  Nf6 {[%clk 0:02:52]} 2. c4 {[%clk 0:03:00]}  b6 {[%clk 0:02:52]} 3. Nf3 {[%clk 0:02:57]}  Bb7 {[%clk 0:02:52]} 4. g3 {[%clk 0:02:57]}  e6 {[%clk 0:02:52]} 5. Bg2 {[%clk 0:02:57]}  Be7 {[%clk 0:02:52]} 6. O-O {[%clk 0:02:56]}  O-O {[%clk 0:02:53]} 7. Re1 {[%clk 0:02:55]}  Qc8 {[%clk 0:02:48]} 8. Nc3 {[%clk 0:02:50]}  Ne4 {[%clk 0:02:48]} 9. Bd2 {[%clk 0:02:47]}  d6 {[%clk 0:02:46]} 10. Qc2 {[%clk 0:02:39]}  Nxd2 {[%clk 0:02:46]} 11. Qxd2 {[%clk 0:02:31]}  Nd7 {[%clk 0:02:36]} 12. Rad1 {[%clk 0:02:07]}  Rd8 {[%clk 0:02:20]} 13. e4 {[%clk 0:01:52]}  e5 {[%clk 0:02:20]} 14. Bh3 {[%clk 0:01:46]}  exd4 {[%clk 0:02:08]} 15. Nxd4 {[%clk 0:01:42]}  Bf6 {[%clk 0:01:53]} 16. Nd5 {[%clk 0:01:38]}  Bxd5 {[%clk 0:01:49]} 17. cxd5 {[%clk 0:01:16]}  Bxd4 {[%clk 0:01:35]} 18. Qxd4 {[%clk 0:01:17]}  Qa6 {[%clk 0:01:35]} 19. Bf1 {[%clk 0:00:43]}  Qb7 {[%clk 0:01:04]} 20. Bb5 {[%clk 0:00:43]}  Ne5 {[%clk 0:01:04]} 21. Re3 {[%clk 0:00:31]}  a6 {[%clk 0:01:02]} 22. Be2 {[%clk 0:00:27]}  b5 {[%clk 0:01:02]} 23. f4 {[%clk 0:00:26]}  Nd7 {[%clk 0:01:01]} 24. e5 {[%clk 0:00:21]}  dxe5 {[%clk 0:00:41]} 25. fxe5 {[%clk 0:00:22]}  Qb6 {[%clk 0:00:36]} 26. Qxb6 {[%clk 0:00:17]}  Nxb6 {[%clk 0:00:36]} 27. Bf3 {[%clk 0:00:15]}  Rac8 {[%clk 0:00:30]} 28. b3 {[%clk 0:00:13]}  c5 {[%clk 0:00:26]} 29. e6 {[%clk 0:00:06]}  c4 {[%clk 0:00:17]} 30. e7 {[%clk 0:00:05]}  Re8 {[%clk 0:00:15]} 31. d6 {[%clk 0:00:05]}  cxb3 {[%clk 0:00:12]} 32. axb3 {[%clk 0:00:06]}  Nd7 {[%clk 0:00:08]} 33. Bg4 {[%clk 0:00:06]}  Nf6 {[%clk 0:00:02]} 34. Bxc8 {[%clk 0:00:06]}  Rxc8 {[%clk 0:00:02]} 35. d7 {[%clk 0:00:06]}  Nxd7 {[%clk 0:00:02]} 36. e8=Q+ {[%clk 0:00:06]}  Rxe8 {[%clk 0:00:01]} 37. Rxe8+ {[%clk 0:00:07]}  Nf8 {[%clk 0:00:02]} 38. Rdd8 {[%clk 0:00:07]}  g6 {[%clk 0:00:03]} 39. Rxf8+ {[%clk 0:00:08]}  Kg7 {[%clk 0:00:04]} 40. Rg8+ {[%clk 0:00:08]}  Kh6 {[%clk 0:00:04]} 41. Rh8 {[%clk 0:00:09]}  a5 {[%clk 0:00:03]} 42. Ra8 {[%clk 0:00:10]}  a4 {[%clk 0:00:04]} 43. bxa4 {[%clk 0:00:10]}  Kg7 {[%clk 0:00:05]} 44. axb5 {[%clk 0:00:10]}  h5 {[%clk 0:00:05]} 45. b6 {[%clk 0:00:11]} 1-0


[Site "https://www.chess.com"]

[Event "Titled Tuesday Blitz June 21 Early 2022"]
[White "Pham, Tran Gia Phuc"]
[Black "Bethke, Richard"]
[WhiteFideId "12415669"]
[BlackFideId "12959243"]
[WhiteElo "1789"]
[BlackElo "2502"]
[Result "1-0"]
[Round "08"]
[TimeControl "180+1"]
[Date "2022.06.21"]
[WhiteClock "0:00:30"]
[BlackClock "0:00:10"]

1. e4 {[%clk 0:03:00]}  c5 {[%clk 0:02:42]} 2. Nc3 {[%clk 0:03:00]}  Nc6 {[%clk 0:02:42]} 3. Bb5 {[%clk 0:03:00]}  Nd4 {[%clk 0:02:42]} 4. Nf3 {[%clk 0:03:00]}  Nxb5 {[%clk 0:02:41]} 5. Nxb5 {[%clk 0:03:00]}  g6 {[%clk 0:02:39]} 6. d4 {[%clk 0:02:58]}  a6 {[%clk 0:02:37]} 7. Nc3 {[%clk 0:02:57]}  cxd4 {[%clk 0:02:37]} 8. Qxd4 {[%clk 0:02:57]}  Nf6 {[%clk 0:02:37]} 9. e5 {[%clk 0:02:57]}  Nh5 {[%clk 0:02:37]} 10. e6 {[%clk 0:02:56]}  Bg7 {[%clk 0:02:37]} 11. exf7+ {[%clk 0:02:51]}  Kxf7 {[%clk 0:02:37]} 12. Ng5+ {[%clk 0:02:51]}  Ke8 {[%clk 0:02:36]} 13. Qc4 {[%clk 0:02:43]}  e6 {[%clk 0:02:36]} 14. O-O {[%clk 0:02:40]}  h6 {[%clk 0:02:33]} 15. Nf3 {[%clk 0:02:34]}  Rf8 {[%clk 0:02:19]} 16. Qe4 {[%clk 0:02:21]}  Qf6 {[%clk 0:02:09]} 17. Be3 {[%clk 0:02:12]}  Qf5 {[%clk 0:02:03]} 18. Qb4 {[%clk 0:02:07]}  Kf7 {[%clk 0:02:01]} 19. Bc5 {[%clk 0:02:03]}  Rd8 {[%clk 0:01:57]} 20. Ne4 {[%clk 0:01:46]}  Kg8 {[%clk 0:01:54]} 21. Be7 {[%clk 0:01:43]}  a5 {[%clk 0:01:42]} 22. Qe1 {[%clk 0:01:42]}  Bxb2 {[%clk 0:01:36]} 23. Rb1 {[%clk 0:01:36]}  Re8 {[%clk 0:01:20]} 24. Nd6 {[%clk 0:01:35]}  Qg4 {[%clk 0:01:15]} 25. h3 {[%clk 0:01:11]}  Qf4 {[%clk 0:00:53]} 26. Nxe8 {[%clk 0:01:06]}  Bh8 {[%clk 0:00:48]} 27. Bd6 {[%clk 0:01:02]}  Qc4 {[%clk 0:00:47]} 28. Qd2 {[%clk 0:00:57]}  Kh7 {[%clk 0:00:44]} 29. Ne5 {[%clk 0:00:55]}  Qh4 {[%clk 0:00:39]} 30. Nc7 {[%clk 0:00:52]}  Ra7 {[%clk 0:00:39]} 31. Qe3 {[%clk 0:00:50]}  b6 {[%clk 0:00:37]} 32. Rxb6 {[%clk 0:00:47]}  Bb7 {[%clk 0:00:29]} 33. Nb5 {[%clk 0:00:35]}  Nf4 {[%clk 0:00:19]} 34. Nf3 {[%clk 0:00:34]}  Nxh3+ {[%clk 0:00:10]} 35. gxh3 {[%clk 0:00:33]}  Qxh3 {[%clk 0:00:11]} 36. Ng5+ {[%clk 0:00:31]}  hxg5 {[%clk 0:00:10]} 37. Qxh3+ {[%clk 0:00:30]} 1-0


[Site "https://www.chess.com"]

[Event "Titled Tuesday Blitz June 21 Early 2022"]
[White "Piesik, Piotr"]
[Black "Rustemov, Alexander"]
[WhiteFideId "1136194"]
[BlackFideId "4119002"]
[WhiteElo "2247"]
[BlackElo "2743"]
[Result "1-0"]
[Round "08"]
[TimeControl "180+1"]
[Date "2022.06.21"]
[WhiteClock "0:00:58"]
[BlackClock "0:00:13"]

1. Nf3 {[%clk 0:02:56]}  c5 {[%clk 0:02:56]} 2. g3 {[%clk 0:02:56]}  g6 {[%clk 0:02:55]} 3. Bg2 {[%clk 0:02:57]}  Bg7 {[%clk 0:02:55]} 4. O-O {[%clk 0:02:58]}  Nc6 {[%clk 0:02:55]} 5. c4 {[%clk 0:02:58]}  e6 {[%clk 0:02:52]} 6. Nc3 {[%clk 0:02:58]}  Nge7 {[%clk 0:02:51]} 7. d3 {[%clk 0:02:56]}  O-O {[%clk 0:02:50]} 8. e4 {[%clk 0:02:56]}  d6 {[%clk 0:02:48]} 9. Bg5 {[%clk 0:02:53]}  h6 {[%clk 0:02:44]} 10. Be3 {[%clk 0:02:54]}  e5 {[%clk 0:02:36]} 11. Qd2 {[%clk 0:02:52]}  Kh7 {[%clk 0:02:35]} 12. Ne1 {[%clk 0:02:51]}  f5 {[%clk 0:02:34]} 13. f4 {[%clk 0:02:51]}  Be6 {[%clk 0:02:32]} 14. Nf3 {[%clk 0:02:48]}  Qd7 {[%clk 0:02:31]} 15. fxe5 {[%clk 0:02:44]}  dxe5 {[%clk 0:02:07]} 16. Nd5 {[%clk 0:02:44]}  b6 {[%clk 0:02:03]} 17. Nh4 {[%clk 0:02:39]}  Rad8 {[%clk 0:01:53]} 18. a3 {[%clk 0:02:21]}  Rf7 {[%clk 0:01:33]} 19. Rad1 {[%clk 0:02:18]}  Rdf8 {[%clk 0:01:32]} 20. b4 {[%clk 0:02:14]}  cxb4 {[%clk 0:01:28]} 21. axb4 {[%clk 0:02:13]}  f4 {[%clk 0:01:03]} 22. gxf4 {[%clk 0:02:13]}  exf4 {[%clk 0:01:03]} 23. Rxf4 {[%clk 0:02:03]}  Rxf4 {[%clk 0:00:58]} 24. Bxf4 {[%clk 0:01:55]}  g5 {[%clk 0:00:56]} 25. Bxg5 {[%clk 0:01:55]}  hxg5 {[%clk 0:00:53]} 26. Qxg5 {[%clk 0:01:56]}  Bh6 {[%clk 0:00:52]} 27. Nf6+ {[%clk 0:01:49]}  Rxf6 {[%clk 0:00:51]} 28. Qxf6 {[%clk 0:01:49]}  Bg7 {[%clk 0:00:42]} 29. Qg5 {[%clk 0:01:43]}  Qd4+ {[%clk 0:00:37]} 30. Kh1 {[%clk 0:01:43]}  Bf6 {[%clk 0:00:29]} 31. Qh5+ {[%clk 0:01:41]}  Kg7 {[%clk 0:00:29]} 32. Nf5+ {[%clk 0:01:34]}  Bxf5 {[%clk 0:00:28]} 33. exf5 {[%clk 0:01:33]}  Ne5 {[%clk 0:00:29]} 34. Be4 {[%clk 0:01:29]}  Qf2 {[%clk 0:00:14]} 35. Rg1+ {[%clk 0:01:27]}  Kf8 {[%clk 0:00:14]} 36. Qh6+ {[%clk 0:01:05]}  Kf7 {[%clk 0:00:14]} 37. Qh7+ {[%clk 0:01:05]}  Kf8 {[%clk 0:00:15]} 38. Bd5 {[%clk 0:00:58]}  Nxd5 {[%clk 0:00:13]} 39. Rg8# {[%clk 0:00:58]} 1-0


[Site "https://www.chess.com"]

[Event "Titled Tuesday Blitz June 21 Early 2022"]
[White "Polster, Christian"]
[Black "Ferreira, Vitor Hugo Vieira"]
[WhiteFideId "12965081"]
[BlackFideId "2119765"]
[WhiteElo "2288"]
[BlackElo "2165"]
[Result "0-1"]
[Round "08"]
[TimeControl "180+1"]
[Date "2022.06.21"]
[WhiteClock "0:00:01"]
[BlackClock "0:00:03"]

1. e4 {[%clk 0:03:00]}  c5 {[%clk 0:02:28]} 2. Nc3 {[%clk 0:02:59]}  d6 {[%clk 0:02:28]} 3. Nge2 {[%clk 0:02:59]}  Nc6 {[%clk 0:02:29]} 4. d4 {[%clk 0:02:58]}  cxd4 {[%clk 0:02:29]} 5. Nxd4 {[%clk 0:02:58]}  Nf6 {[%clk 0:02:29]} 6. Bg5 {[%clk 0:02:58]}  Bd7 {[%clk 0:02:29]} 7. Qd2 {[%clk 0:02:58]}  Rc8 {[%clk 0:02:28]} 8. O-O-O {[%clk 0:02:58]}  Nxd4 {[%clk 0:02:27]} 9. Qxd4 {[%clk 0:02:58]}  Qa5 {[%clk 0:02:27]} 10. f4 {[%clk 0:02:55]}  Qc5 {[%clk 0:02:24]} 11. Qd2 {[%clk 0:02:46]}  e6 {[%clk 0:02:13]} 12. e5 {[%clk 0:02:37]}  h6 {[%clk 0:01:45]} 13. Bxf6 {[%clk 0:02:37]}  gxf6 {[%clk 0:01:45]} 14. Ne4 {[%clk 0:02:37]}  Qc6 {[%clk 0:01:20]} 15. Nxf6+ {[%clk 0:02:35]}  Kd8 {[%clk 0:01:20]} 16. Kb1 {[%clk 0:02:25]}  d5 {[%clk 0:01:18]} 17. Bd3 {[%clk 0:02:17]}  Qb6 {[%clk 0:01:13]} 18. f5 {[%clk 0:02:04]}  Ba3 {[%clk 0:01:11]} 19. c4 {[%clk 0:01:52]}  Ba4 {[%clk 0:00:59]} 20. Rc1 {[%clk 0:01:42]}  d4 {[%clk 0:00:54]} 21. fxe6 {[%clk 0:01:35]}  fxe6 {[%clk 0:00:54]} 22. Be4 {[%clk 0:01:18]}  Bb4 {[%clk 0:00:48]} 23. Qf2 {[%clk 0:01:06]}  Bc3 {[%clk 0:00:35]} 24. Ka1 {[%clk 0:00:51]}  Bb4 {[%clk 0:00:27]} 25. a3 {[%clk 0:00:22]}  Bc5 {[%clk 0:00:24]} 26. b4 {[%clk 0:00:20]}  Bxb4 {[%clk 0:00:10]} 27. axb4 {[%clk 0:00:21]}  Qxb4 {[%clk 0:00:11]} 28. Qxd4+ {[%clk 0:00:21]}  Ke7 {[%clk 0:00:10]} 29. Qb2 {[%clk 0:00:15]}  Qc5 {[%clk 0:00:08]} 30. Rhf1 {[%clk 0:00:08]}  Rc7 {[%clk 0:00:08]} 31. Bd5 {[%clk 0:00:04]}  a5 {[%clk 0:00:06]} 32. Ne4 {[%clk 0:00:04]}  Qb4 {[%clk 0:00:04]} 33. Qf2 {[%clk 0:00:02]}  exd5 {[%clk 0:00:02]} 34. Qf7+ {[%clk 0:00:01]}  Kd8 {[%clk 0:00:02]} 35. Qf6+ {[%clk 0:00:01]}  Kd7 {[%clk 0:00:03]} 36. Qg7+ {[%clk 0:00:01]}  Kc6 {[%clk 0:00:03]} 37. cxd5+ {[%clk 0:00:01]}  Kb5 {[%clk 0:00:03]} 0-1


[Site "https://www.chess.com"]

[Event "Titled Tuesday Blitz June 21 Early 2022"]
[White "Reprintsev, Alexander"]
[Black "Curtis, John"]
[WhiteFideId "14100541"]
[BlackFideId "3200256"]
[WhiteElo "2108"]
[BlackElo "2203"]
[Result "1-0"]
[Round "08"]
[TimeControl "180+1"]
[Date "2022.06.21"]
[WhiteClock "0:00:10"]
[BlackClock "0:00:08"]

1. e4 {[%clk 0:03:00]}  e5 {[%clk 0:02:58]} 2. f4 {[%clk 0:03:00]}  d5 {[%clk 0:02:58]} 3. exd5 {[%clk 0:03:00]}  exf4 {[%clk 0:02:57]} 4. Nf3 {[%clk 0:03:00]}  Qxd5 {[%clk 0:02:53]} 5. Nc3 {[%clk 0:02:35]}  Qh5 {[%clk 0:02:48]} 6. d4 {[%clk 0:02:20]}  Bb4 {[%clk 0:02:33]} 7. Bxf4 {[%clk 0:02:18]}  Nf6 {[%clk 0:02:24]} 8. Bc4 {[%clk 0:02:08]}  O-O {[%clk 0:02:08]} 9. O-O {[%clk 0:02:08]}  c6 {[%clk 0:02:00]} 10. Ne5 {[%clk 0:01:55]}  Qxd1 {[%clk 0:01:55]} 11. Raxd1 {[%clk 0:01:56]}  Be6 {[%clk 0:01:50]} 12. Bxe6 {[%clk 0:01:55]}  fxe6 {[%clk 0:01:50]} 13. Ne2 {[%clk 0:01:50]}  Nbd7 {[%clk 0:01:43]} 14. c3 {[%clk 0:01:49]}  Be7 {[%clk 0:01:37]} 15. Nc4 {[%clk 0:01:45]}  Nd5 {[%clk 0:01:30]} 16. Bd6 {[%clk 0:01:41]}  Rxf1+ {[%clk 0:01:24]} 17. Rxf1 {[%clk 0:01:39]}  Bd8 {[%clk 0:01:10]} 18. Ne5 {[%clk 0:01:25]}  N7f6 {[%clk 0:01:06]} 19. c4 {[%clk 0:01:23]}  Nb6 {[%clk 0:01:03]} 20. b3 {[%clk 0:01:22]}  Nc8 {[%clk 0:00:57]} 21. Ba3 {[%clk 0:01:19]}  Be7 {[%clk 0:00:57]} 22. Bxe7 {[%clk 0:01:15]}  Nxe7 {[%clk 0:00:57]} 23. Nf4 {[%clk 0:01:16]}  Ne4 {[%clk 0:00:47]} 24. Nxe6 {[%clk 0:01:15]}  Ng6 {[%clk 0:00:39]} 25. Nxg6 {[%clk 0:01:14]}  hxg6 {[%clk 0:00:39]} 26. Re1 {[%clk 0:01:06]}  Nf6 {[%clk 0:00:35]} 27. Nc5 {[%clk 0:01:05]}  Rd8 {[%clk 0:00:33]} 28. Nxb7 {[%clk 0:01:03]}  Rxd4 {[%clk 0:00:33]} 29. Re2 {[%clk 0:00:51]}  Ne4 {[%clk 0:00:32]} 30. g3 {[%clk 0:00:44]}  g5 {[%clk 0:00:31]} 31. Kg2 {[%clk 0:00:41]}  g4 {[%clk 0:00:31]} 32. Na5 {[%clk 0:00:37]}  c5 {[%clk 0:00:31]} 33. Nc6 {[%clk 0:00:36]}  Rd2 {[%clk 0:00:31]} 34. Rxd2 {[%clk 0:00:36]}  Nxd2 {[%clk 0:00:31]} 35. Nxa7 {[%clk 0:00:36]}  Kf7 {[%clk 0:00:26]} 36. Nc6 {[%clk 0:00:33]}  Ke6 {[%clk 0:00:25]} 37. h3 {[%clk 0:00:16]}  gxh3+ {[%clk 0:00:24]} 38. Kxh3 {[%clk 0:00:16]}  Ne4 {[%clk 0:00:23]} 39. Kg4 {[%clk 0:00:13]}  Nc3 {[%clk 0:00:20]} 40. a4 {[%clk 0:00:12]}  Na2 {[%clk 0:00:19]} 41. a5 {[%clk 0:00:11]}  Kd6 {[%clk 0:00:18]} 42. Nd8 {[%clk 0:00:11]}  Nc1 {[%clk 0:00:16]} 43. a6 {[%clk 0:00:11]}  Kc7 {[%clk 0:00:11]} 44. a7 {[%clk 0:00:11]}  Nxb3 {[%clk 0:00:10]} 45. a8=Q {[%clk 0:00:11]}  Nd4 {[%clk 0:00:09]} 46. Qd5 {[%clk 0:00:10]}  Nc6 {[%clk 0:00:09]} 47. Qxc6+ {[%clk 0:00:10]}  Kxd8 {[%clk 0:00:09]} 48. Qb7 {[%clk 0:00:10]}  g5 {[%clk 0:00:08]} 49. Kf5 {[%clk 0:00:10]}  Ke8 {[%clk 0:00:08]} 50. Ke6 {[%clk 0:00:10]}  Kf8 {[%clk 0:00:08]} 51. Qf7# {[%clk 0:00:10]} 1-0


[Site "https://www.chess.com"]

[Event "Titled Tuesday Blitz June 21 Early 2022"]
[White "Rom, Jasper"]
[Black "Ziatdinov, Raset"]
[WhiteFideId "2023733"]
[BlackFideId "2015323"]
[WhiteElo "2233"]
[BlackElo "2220"]
[Result "0-1"]
[Round "08"]
[TimeControl "180+1"]
[Date "2022.06.21"]
[WhiteClock "0:00:01"]
[BlackClock "0:00:31"]

1. e4 {[%clk 0:03:00]}  c5 {[%clk 0:02:59]} 2. Nc3 {[%clk 0:03:00]}  Nc6 {[%clk 0:02:59]} 3. f4 {[%clk 0:03:00]}  g6 {[%clk 0:02:58]} 4. Nf3 {[%clk 0:03:00]}  Bg7 {[%clk 0:02:57]} 5. Bb5 {[%clk 0:03:00]}  Nd4 {[%clk 0:02:52]} 6. O-O {[%clk 0:03:00]}  a6 {[%clk 0:02:22]} 7. Bc4 {[%clk 0:02:56]}  d6 {[%clk 0:02:22]} 8. d3 {[%clk 0:02:55]}  Nf6 {[%clk 0:02:13]} 9. Nxd4 {[%clk 0:02:53]}  cxd4 {[%clk 0:02:12]} 10. Ne2 {[%clk 0:02:53]}  O-O {[%clk 0:02:12]} 11. Bb3 {[%clk 0:02:44]}  b5 {[%clk 0:02:05]} 12. Qe1 {[%clk 0:02:43]}  Qb6 {[%clk 0:02:03]} 13. Kh1 {[%clk 0:02:39]}  a5 {[%clk 0:02:02]} 14. a4 {[%clk 0:02:31]}  bxa4 {[%clk 0:01:59]} 15. Rxa4 {[%clk 0:02:31]}  Nd7 {[%clk 0:01:56]} 16. Bd2 {[%clk 0:02:22]}  Nc5 {[%clk 0:01:56]} 17. Bxa5 {[%clk 0:02:14]}  Qa7 {[%clk 0:01:44]} 18. Ra3 {[%clk 0:02:06]}  Nxb3 {[%clk 0:01:43]} 19. cxb3 {[%clk 0:02:06]}  Qa6 {[%clk 0:01:38]} 20. Qd2 {[%clk 0:02:02]}  Qb5 {[%clk 0:01:36]} 21. b4 {[%clk 0:01:47]}  Ba6 {[%clk 0:01:36]} 22. Rc1 {[%clk 0:01:44]}  Rac8 {[%clk 0:01:35]} 23. h3 {[%clk 0:01:24]}  Rxc1+ {[%clk 0:01:34]} 24. Qxc1 {[%clk 0:01:24]}  Rc8 {[%clk 0:01:34]} 25. Qd2 {[%clk 0:01:24]}  f5 {[%clk 0:01:33]} 26. Ng3 {[%clk 0:01:20]}  e6 {[%clk 0:01:25]} 27. exf5 {[%clk 0:01:14]}  exf5 {[%clk 0:01:26]} 28. Qe2 {[%clk 0:01:13]}  Re8 {[%clk 0:01:23]} 29. Qc2 {[%clk 0:01:04]}  Re3 {[%clk 0:01:18]} 30. Kh2 {[%clk 0:00:59]}  Rxd3 {[%clk 0:01:16]} 31. Rxd3 {[%clk 0:00:51]}  Qxd3 {[%clk 0:01:17]} 32. Qc6 {[%clk 0:00:51]}  Bf8 {[%clk 0:01:05]} 33. Bc7 {[%clk 0:00:44]}  Qb5 {[%clk 0:01:05]} 34. Qa8 {[%clk 0:00:36]}  Bb7 {[%clk 0:01:04]} 35. Qa2+ {[%clk 0:00:28]}  Kg7 {[%clk 0:00:59]} 36. b3 {[%clk 0:00:23]}  Qxb4 {[%clk 0:00:56]} 37. Qe2 {[%clk 0:00:15]}  Qxb3 {[%clk 0:00:51]} 38. Bd8 {[%clk 0:00:11]}  Qd5 {[%clk 0:00:49]} 39. Nf1 {[%clk 0:00:10]}  d3 {[%clk 0:00:48]} 40. Qf2 {[%clk 0:00:10]}  Kf7 {[%clk 0:00:42]} 41. Ne3 {[%clk 0:00:09]}  Qe4 {[%clk 0:00:42]} 42. Bb6 {[%clk 0:00:05]}  d5 {[%clk 0:00:39]} 43. Qh4 {[%clk 0:00:04]}  Kg8 {[%clk 0:00:38]} 44. Qf6 {[%clk 0:00:04]}  Qxf4+ {[%clk 0:00:37]} 45. Kh1 {[%clk 0:00:03]}  Qd6 {[%clk 0:00:36]} 46. Qd4 {[%clk 0:00:01]}  Bg7 {[%clk 0:00:31]} 0-1


[Site "https://www.chess.com"]

[Event "Titled Tuesday Blitz June 21 Early 2022"]
[White "Samsonkin, Artiom"]
[Black "Andreikin, Dmitry"]
[WhiteFideId "13503111"]
[BlackFideId "4158814"]
[WhiteElo "2513"]
[BlackElo "2736"]
[Result "0-1"]
[Round "08"]
[TimeControl "180+1"]
[Date "2022.06.21"]
[WhiteClock "0:00:10"]
[BlackClock "0:02:30"]

1. d4 {[%clk 0:02:59]}  Nf6 {[%clk 0:02:59]} 2. Nf3 {[%clk 0:02:58]}  e6 {[%clk 0:02:58]} 3. Bf4 {[%clk 0:02:59]}  Nh5 {[%clk 0:02:56]} 4. Bg3 {[%clk 0:02:55]}  Nxg3 {[%clk 0:02:56]} 5. hxg3 {[%clk 0:02:56]}  g6 {[%clk 0:02:55]} 6. e4 {[%clk 0:02:40]}  Bg7 {[%clk 0:02:55]} 7. c3 {[%clk 0:02:34]}  d6 {[%clk 0:02:55]} 8. Bd3 {[%clk 0:02:34]}  Nd7 {[%clk 0:02:55]} 9. Nbd2 {[%clk 0:02:35]}  b6 {[%clk 0:02:52]} 10. Qe2 {[%clk 0:02:32]}  a6 {[%clk 0:02:51]} 11. a4 {[%clk 0:02:26]}  Bb7 {[%clk 0:02:51]} 12. d5 {[%clk 0:02:07]}  exd5 {[%clk 0:02:42]} 13. exd5+ {[%clk 0:02:07]}  Qe7 {[%clk 0:02:40]} 14. Qxe7+ {[%clk 0:01:08]}  Kxe7 {[%clk 0:02:41]} 15. a5 {[%clk 0:01:08]}  Nc5 {[%clk 0:02:33]} 16. Bc4 {[%clk 0:01:03]}  b5 {[%clk 0:02:32]} 17. Ba2 {[%clk 0:01:03]}  Nd3+ {[%clk 0:02:32]} 18. Ke2 {[%clk 0:01:01]}  Nxb2 {[%clk 0:02:32]} 19. Rhc1 {[%clk 0:00:10]}  Rae8 {[%clk 0:02:30]} 0-1


[Site "https://www.chess.com"]

[Event "Titled Tuesday Blitz June 21 Early 2022"]
[White "Sanchez, Robert"]
[Black "Vidonyak, Roman"]
[WhiteFideId "2034360"]
[BlackFideId "14100622"]
[WhiteElo "2002"]
[BlackElo "2364"]
[Result "0-1"]
[Round "08"]
[TimeControl "180+1"]
[Date "2022.06.21"]
[WhiteClock "0:01:10"]
[BlackClock "0:01:41"]

1. e4 {[%clk 0:03:00]}  c5 {[%clk 0:02:58]} 2. Nf3 {[%clk 0:03:01]}  d6 {[%clk 0:02:58]} 3. d4 {[%clk 0:03:01]}  cxd4 {[%clk 0:02:59]} 4. Nxd4 {[%clk 0:03:02]}  Nf6 {[%clk 0:02:57]} 5. Nc3 {[%clk 0:03:02]}  a6 {[%clk 0:02:57]} 6. Be3 {[%clk 0:03:02]}  e5 {[%clk 0:02:56]} 7. Nb3 {[%clk 0:03:03]}  Be7 {[%clk 0:02:56]} 8. f3 {[%clk 0:03:03]}  Be6 {[%clk 0:02:57]} 9. Qd2 {[%clk 0:03:04]}  O-O {[%clk 0:02:57]} 10. O-O-O {[%clk 0:03:04]}  Nbd7 {[%clk 0:02:55]} 11. g4 {[%clk 0:03:04]}  b5 {[%clk 0:02:56]} 12. g5 {[%clk 0:03:05]}  Nh5 {[%clk 0:02:56]} 13. Kb1 {[%clk 0:03:02]}  Nb6 {[%clk 0:02:55]} 14. Nd5 {[%clk 0:02:58]}  Nxd5 {[%clk 0:02:46]} 15. exd5 {[%clk 0:02:58]}  Bf5 {[%clk 0:02:47]} 16. Na5 {[%clk 0:02:56]}  f6 {[%clk 0:02:40]} 17. Nc6 {[%clk 0:02:41]}  Qd7 {[%clk 0:02:39]} 18. Rg1 {[%clk 0:02:36]}  Rac8 {[%clk 0:02:25]} 19. Bd3 {[%clk 0:02:26]}  Bxd3 {[%clk 0:02:23]} 20. Qxd3 {[%clk 0:02:25]}  fxg5 {[%clk 0:02:22]} 21. Bxg5 {[%clk 0:02:10]}  Bxg5 {[%clk 0:02:20]} 22. Rxg5 {[%clk 0:02:11]}  Nf4 {[%clk 0:02:20]} 23. Qe4 {[%clk 0:02:03]}  Kh8 {[%clk 0:02:18]} 24. Rdg1 {[%clk 0:01:55]}  g6 {[%clk 0:02:08]} 25. Nb4 {[%clk 0:01:32]}  Rc4 {[%clk 0:02:00]} 26. Qe1 {[%clk 0:01:30]}  Rfc8 {[%clk 0:01:53]} 27. R5g4 {[%clk 0:01:20]}  a5 {[%clk 0:01:52]} 28. Nd3 {[%clk 0:01:20]}  Rxc2 {[%clk 0:01:42]} 29. Nxf4 {[%clk 0:01:18]}  exf4 {[%clk 0:01:41]} 30. Rxf4 {[%clk 0:01:10]}  Qg7 {[%clk 0:01:41]} 0-1


[Site "https://www.chess.com"]